Cogmind - Beta 15 @@@ ROGUE MODE // 2025.09.12 @ 19:36:19 Player: winnking222 Result: Destroyed by S-10 Pest with Light Assault Rifle Performance ------------- Evolutions (0) 0 Regions Visited (2) 400 Robots Destroyed (18) 90 Value Destroyed (546) 546 Prototype IDs (0) 0 Alien Tech Used (0) 0 Bonus (0) 0 TOTAL SCORE: 1036 Bonus ------- None Cogmind --------- Core Integrity 0/250 Matter 299/300 Energy 179/200 System Corruption 4% Temperature Cool (65) Movement Walking (330) Ox3 Location -10/Subcaves Parts ------- > --- POWER (1) -------- Subdweller Power Source > --- PROPULSION (2) --- Aluminum Leg > --- UTILITY (2) ------ Large Storage Unit Makeshift Light Armor Plating > --- WEAPON (2) ------- Subdweller Laser Subdweller Laser > --- INVENTORY (15) --- Subdweller Power Source Subdweller Power Source Spiked Treads Subdweller Monowheel Subdweller Monowheel High-capacity Matter Pod (200) Subdweller Optics Seismic Detector Makeshift Light Armor Plating Makeshift Light Armor Plating Makeshift System Shield Subdweller Machine Gun Subdweller Machine Gun Subdweller Machine Gun Shrapnel Trap Peak State ------------ > --- POWER ------------ Subdweller Power Source > --- PROPULSION ------- Aluminum Leg Aluminum Leg > --- UTILITY ---------- Large Storage Unit Makeshift Light Armor Plating > --- WEAPON ----------- Subdweller Laser Subdweller Laser > --- INVENTORY -------- Ion Engine Subdweller Power Source Subdweller Power Source Spiked Treads Subdweller Monowheel Subdweller Monowheel High-capacity Matter Pod Subdweller Optics Seismic Detector Makeshift Light Armor Plating Makeshift Light Armor Plating Makeshift System Shield Subdweller Machine Gun Subdweller Machine Gun Shrapnel Trap [Rating: 16] Favorites ----------- Power Light Ion Engine Engine Light Ion Engine Propulsion Light Treads Treads Light Treads Leg Aluminum Leg Wheel Compact Wheel Utility Large Storage Unit Device Subdweller Optics Storage Large Storage Unit Protection Makeshift Light Armor Plating Weapon Small Laser Energy Gun Small Laser Energy Cannon Subdweller Beam Cannon Ballistic Gun Barrage Gun Build | -11 -10 -10 ------- Run | Yrd Mat Sub Slots Evolved . | . . . Power . | . . . Propulsion . | . . . Utility . | . . . Weapon . | . . . Parts Attached 27 | 7 2 18 Power 3 | 1 . 2 Engine 3 | 1 . 2 Core . | . . . Reactor . | . . . Propulsion 6 | 2 . 4 Treads 3 | 2 . 1 Leg 2 | . . 2 Wheel 1 | . . 1 Hover . | . . . Flight . | . . . Utility 7 | 2 1 4 Device 3 | 1 . 2 Storage 2 | 1 1 . Processor . | . . . Hackware . | . . . Protection 2 | . . 2 Artifact . | . . . Weapon 11 | 2 1 8 Energy Gun 6 | 2 1 3 Energy Cannon 1 | . . 1 Ballistic Gun 4 | . . 4 Ballistic Cannon . | . . . Launcher . | . . . Special Weapon . | . . . Impact Weapon . | . . . Slashing Weapon . | . . . Piercing Weapon . | . . . Special Melee Weapon . | . . . Unidentified Prototypes . | . . . Parts Lost 8 | . 1 7 Power 1 | . . 1 Propulsion 4 | . . 4 Utility 2 | . 1 1 Weapon 1 | . . 1 Highest Loss Streak 2 | . 1 2 To Critical Strikes . | . . . Average Backups 11 | 5 7 12 Power 1 | . 1 1 Propulsion 3 | 2 4 3 Utility 2 | . 1 3 Weapon 2 | 1 1 3 Tool/Special . | . . . Unused Backups 17 | . . 17 Power 2 | . . 2 Propulsion 4 | . . 4 Utility 6 | . . 6 Weapon 5 | . . 5 Tool/Special . | . . . Average Slot Usage (%) 95 | . 90 97 Engine 13 | . 14 13 Treads 19 | . 28 16 Leg 4 | . . 6 Wheel 3 | . . 5 Device 7 | . 5 8 Storage 13 | . 14 13 Protection 3 | . . 4 Energy Gun 20 | . 28 18 Energy Cannon 3 | . . 4 Ballistic Gun 3 | . . 4 Peak Build Rating 16 | 7 7 16 Average Rating 10 | 5 6 11 On Entrance 4 | . 7 6 Naked Turns . | . . . Heaviest Build 37 | 11 25 37 Greatest Support 40 | 40 40 40 Greatest Overweight (x) 2 | . . 2 Average Overweight (x) . | . . . Largest Inventory Capacity 15 | 8 15 15 Average Capacity 13 | 7 11 14 Most Carried 15 | 8 9 15 Average Carried 11 | 5 7 13 Final Capacity 15 | 8 15 15 Final Carried 15 | 7 9 15 Class Distribution -------------------- 99% | Mutant Dominant Class ---------------- Mutant | -10/Materials Mutant | -10/Subcaves Resources | -11 -10 -10 ----------- Run | Yrd Mat Sub Matter Collected 843 | 270 240 333 Remotely . | . . . Salvage Created 717 | 140 155 422 Parts 38 | 8 6 24 Haulers Intercepted . | . . . Recyclers Shooed 1 | 1 . . Parts Field Recycled . | . . . Retrieved Matter . | . . . Parts Self-Destructed 18 | . . 18 Prevented . | . . . Kills | -11 -10 -10 ------- Run | Yrd Mat Sub Combat Hostiles Destroyed 14 | . 4 10 Guns 11 | . 4 7 Cannons 2 | . . 2 Classes Destroyed 5 | 2 1 2 Tunneler 3 | 3 . . Recycler 1 | 1 . . Swarmer 1 | . . 1 Grunt 4 | . 4 . Subdweller 9 | . . 9 Best Kill Streak 4 | 4 3 1 Combat Bots Only 3 | . 3 1 Max Kills in Single Turn 1 | 1 1 1 Gunslinging . | . . . Exploded . | . . . Melee . | . . . Uniques/NPCs Destroyed . | . . . Combat | -11 -10 -10 -------- Run | Yrd Mat Sub Hostile Shots Fired 132 | . 29 103 Missed 37 | . 7 30 Hits 95 | . 22 73 Projectile 95 | . 22 73 AOE 2 | . . 2 Critical Strikes 4 | . . 4 Damage Taken 1663 | . 272 1391 Core 256 | . 36 220 Absorbed by Shields . | . . . Core Remaining (%) 100 | 100 . . Volleys Fired 125 | 8 15 102 Largest 2 | 2 2 2 Hottest 120 | 80 80 120 Shots Fired 235 | 16 29 190 Gun 197 | 16 29 152 Cannon 38 | . . 38 Launcher . | . . . Special . | . . . Kinetic 25 | . . 25 Thermal 210 | 16 29 165 Explosive . | . . . Electromagnetic . | . . . Robot Hit Streak 19 | 7 10 19 Robot Miss Streak 4 | 1 2 4 Penetration Max . | . . . Secondary Targets . | . . . Shots Hit Robots 123 | 12 21 90 Core Hits 34 | 5 9 20 Critical Kills 1 | . . 1 Critical Parts Destroyed . | . . . Critical Strikes 2 | . . 2 Meltdown 1 | . . 1 Destroy 1 | . . 1 Melee Attacks . | . . . Impact . | . . . Slashing . | . . . Piercing . | . . . Sneak Attacks . | . . . Combat Hostiles . | . . . Follow-up Attacks . | . . . Damage Inflicted 2107 | 133 239 1735 Guns 1631 | 133 233 1265 Cannons 470 | . . 470 Explosions . | . . . Melee . | . . . Ramming 6 | . 6 . Kinetic 181 | . . 181 Thermal 1920 | 133 233 1554 Explosive . | . . . Electromagnetic . | . . . Impact . | . . . Slashing . | . . . Piercing . | . . . Highest Corruption 4 | . 4 4 Average Corruption 3 | . 3 4 Corruption Purged . | . . . Corruption Blocked . | . . . Effects 56 | . 13 43 Message Errors 11 | . 3 8 Matter Fused 10 | . 3 7 Heat Flow Errors 5 | . . 5 Energy Discharges 13 | . 5 8 Parts Rejected 1 | . . 1 Data Loss (minor) 8 | . 1 7 Data Loss (major) 3 | . 1 2 Misfires 2 | . . 2 Alerts 2 | . . 2 Weapon Failures 1 | . . 1 Overload Shots . | . . . Overflow Damage . | . . . Projectiles . | . . . Explosions . | . . . Melee . | . . . Knockbacks . | . . . Impact . | . . . Kinetic . | . . . Secondary . | . . . Self-Inflicted Damage . | . . . Shots . | . . . Rammed 2 | . 2 . Targets Rammed 2 | . 2 . Kicked . | . . . Crushed . | . . . Highest Temperature 324 | 54 324 182 Average Temperature 57 | 25 158 25 Received Heat Transfer 297 | . 144 153 Effects 3 | . 3 . Shutdowns 1 | . 1 . Interference 2 | . 2 . Siege Activations . | . . . Martial Activations . | . . . Shielding Activations . | . . . Robots Disrupted . | . . . Combat Hostiles . | . . . Robots Corrupted . | . . . Combat Hostiles . | . . . Parts Fried . | . . . Impact Corruptions . | . . . Robots Melted 1 | . . 1 Combat Hostiles 1 | . . 1 Parts Melted 5 | . 2 3 Heat Transferred 3029 | 300 525 2204 Parts Sabotaged . | . . . Parts Stolen . | . . . Parts Stripped . | . . . Power Chain Reactions . | . . . Alert | -11 -10 -10 ------- Run | Yrd Mat Sub Maximum Alert Level . | . . . Low Security (%) 100 | 100 100 . Level 1 . | . . . Level 2 . | . . . Level 3 . | . . . Level 4 . | . . . Level 5 . | . . . High Security . | . . . Max Security . | . . . Peak Influence 60 | 10 60 . Initial . | . . . Average 6 | 1 7 . Influence Increases 170 | 20 100 50 Destroy 0b10 Robot/C 100 | . 80 20 Destroy 0b10 Robot/NC 20 | 20 . . Destroy Leader 20 | . 20 . Lose Combat Pursuer 30 | . . 30 Influence Decreases 132 | 20 100 12 Time Decay 112 | 20 90 2 Lost Part 20 | . 10 10 Squads Dispatched 1 | . 1 . Investigation . | . . . Extermination . | . . . Reinforcement 1 | . 1 . Assault . | . . . Garrison . | . . . Intercept . | . . . Searches Triggered . | . . . Construction Impeded . | . . . Haulers Reinforced . | . . . Active Scanning Responses . | . . . Cargo Convoy Interrupts . | . . . Stealth | -11 -10 -10 --------- Run | Yrd Mat Sub Distress Signals 1 | . 1 . Communications Jammed . | . . . Distress Signals . | . . . Times Spotted 26 | . 6 20 Peak Tracking Total 5 | . 4 5 Tactical Retreats 1 | . . 1 Traps | -11 -10 -10 ------- Run | Yrd Mat Sub Traps Triggered 4 | . 4 . Indirectly . | . . . Trap Hack Attempts . | . . . Triggered . | . . . Disarmed . | . . . Reprogrammed . | . . . Reused . | . . . Traps Extracted . | . . . Installed . | . . . Triggered . | . . . Most Traps Carried 1 | . . 1 Machines | -11 -10 -10 ---------- Run | Yrd Mat Sub Machines Disabled . | . . . Max in Single Turn . | . . . Machines Repaired . | . . . Machines Dismantled . | . . . Machines Sabotaged . | . . . Overloaded Fab Kills . | . . . Hacking | -11 -10 -10 --------- Run | Yrd Mat Sub Machines Accessed 1 | . . 1 Terminals . | . . . Fabricators . | . . . Repair Stations . | . . . Recycling Units . | . . . Scanalyzers . | . . . Garrison Access . | . . . Total Hacks 5 | . . 5 Successful 5 | . . 5 Failed . | . . . Catastrophic . | . . . Database Lockouts . | . . . Manual . | . . . Terminals . | . . . Fabricators . | . . . Repair Stations . | . . . Recycling Units . | . . . Scanalyzers . | . . . Garrison Access . | . . . Terminal Hacks 5 | . . 5 Record 5 | . . 5 Fabricator Hacks . | . . . Repair Station Hacks . | . . . Recycling Unit Hacks . | . . . Scanalyzer . | . . . Garrison Access Hacks . | . . . Unauthorized Hacks . | . . . Terminals . | . . . Fabricators . | . . . Repair Stations . | . . . Recycling Units . | . . . Scanalyzers . | . . . Garrison Access . | . . . Data Cores Recovered . | . . . Used . | . . . Hacking Detections . | . . . Full Trace Events . | . . . Feedback Events . | . . . Feedback Blocked . | . . . Robot Schematics Acquired . | . . . Robots Built . | . . . Authchips . | . . . Time . | . . . Total Robot Build Rating . | . . . Part Schematics Acquired . | . . . Parts Built . | . . . Authchips . | . . . Time . | . . . Total Part Build Rating . | . . . Parts Repaired . | . . . Time . | . . . Parts Recycled . | . . . Recycled Matter . | . . . Retrieved Matter . | . . . Retrieved Components . | . . . Parts Scanalyzed . | . . . Part Schematics Acquired . | . . . Parts Damaged . | . . . Bothacking | -11 -10 -10 ------------ Run | Yrd Mat Sub Used RIF Installer . | . . . Robots Hacked . | . . . Non-combat . | . . . Combat . | . . . Robot Hacks Applied . | . . . Relay Couplers Released . | . . . Fabnet Peak Effective % . | . . . Robots Rewired . | . . . Allies Hacked . | . . . Hacks Repelled . | . . . Allies | -11 -10 -10 -------- Run | Yrd Mat Sub Total Allies . | . . . Largest Group . | . . . Highest-Rated Group . | . . . Highest-Rated Ally . | . . . Total Orders . | . . . Ally Attacks . | . . . Total Damage . | . . . Kills . | . . . Allies Corrupted . | . . . Allies Melted . | . . . Intel | -11 -10 -10 ------- Run | Yrd Mat Sub Active Infowar (turns) 1079 | 28 263 788 Optics 788 | . . 788 Seismic 291 | 28 263 . Robot Analysis Total . | . . . Derelict Logs Recovered . | . . . Drone Launches . | . . . Drone Recoveries . | . . . Exploration | -11 -10 -10 ------------- Run | Yrd Mat Sub Turns Passed 3167 | 129 746 2292 Spaces Moved 1732 | 62 401 1269 Core 13 | 13 . . Treads 1016 | 49 401 566 Legs 156 | . . 156 Wheels 547 | . . 547 Hover . | . . . Flight . | . . . Fastest Speed 50 | 50 160 100 Average Speed 148 | 136 160 146 Slowest Speed 190 | 160 160 190 Overloaded Moves . | . . . Propulsion Burnouts . | . . . Robots Hopped . | . . . Potential Cave-ins . | . . . Cave-ins Triggered . | . . . Exploration Rate (%) 50 | 6 70 75 Regions Visited 2 Branch Regions 1 Pre-discovered Areas 1 | . . 1 Known Exits Taken . | . . . Unknown Exits Taken 2 | 1 1 . Scrap Searched 15 | . . 15 Spaces Dug 1 | . . 1 Terrain Destroyed 2 | . . 2 Melee . | . . . Projectile 2 | . . 2 AOE . | . . . Terrain Rammed . | . . . Walls Destroyed . | . . . Machines Disabled . | . . . Actions | -11 -10 -10 --------- Run | Yrd Mat Sub Total 2090 | 90 476 1524 Wait 123 | . 52 71 Move 1730 | 61 400 1269 Hop . | . . . Pick Up 58 | 14 3 41 Fast Attach 1 | . . 1 Attach 22 | 7 1 14 Detach . | . . . Swap 7 | . 1 6 Drop 21 | . 2 19 Fire 125 | 8 15 102 Melee . | . . . Ram . | . . . Kick . | . . . Crush 2 | . 2 . Escape Stasis . | . . . Rewire . | . . . Trap . | . . . Miscellaneous 1 | . . 1 Route ------- -11/Scrapyard -10/Materials (discovered 4 exits: [*Mat x2] / [*Min] / *Sub) -10/Subcaves (discovered 3 exits: [*Mat x2] / [*Scr]) History --------- Turn | Location | Event 25 | -11/Scrapyard | Discovered new exit (range 15) 130 | -11/Scrapyard | Entered Materials 131 | -10/Materials | Met a group of wandering Federalists 247 | -10/Materials | Discovered new exit (range 13) 302 | -10/Materials | Build established: Mutant 508 | -10/Materials | Discovered new exit (range 11) 785 | -10/Materials | Discovered new exit (range 5) 872 | -10/Materials | Discovered new exit (range 3) 876 | -10/Materials | Entered Subcaves 877 | -10/Subcaves | Continued accompanying wandering Federalists (4) 933 | -10/Subcaves | Lost 3 allies 1125 | -10/Subcaves | Wandering Federalist uncovered a shortcut to Scraptown 1202 | -10/Subcaves | A swath of the cavern ceiling suddenly collapsed 1661 | -10/Subcaves | Disturbed a concealed Subdweller 1849 | -10/Subcaves | Shifting Twisted Machinery released Sub. Optics 1875 | -10/Subcaves | Shifting Twisted Machinery released Sub. Power Source 2008 | -10/Subcaves | Visited Clippyterm 2011 | -10/Subcaves | Learned Research machine intel 2011 | -10/Subcaves | Learned Factory emergency access door positions 2121 | -10/Subcaves | Shifting Twisted Machinery released Mak. System Shield 2164 | -10/Subcaves | Shifting Twisted Machinery released Humpback 2533 | -10/Subcaves | Core integrity fell below 50% 2613 | -10/Subcaves | Discovered new exit (range 7) 2625 | -10/Subcaves | Discovered new exit (range 7) 3004 | -10/Subcaves | Core integrity fell below 20% 3085 | -10/Subcaves | Learned location of Zion (-6) 3085 | -10/Subcaves | Met a Zionite searching for "candidates" 3168 | -10/Subcaves | Destroyed by S-10 Pest with Light Assault Rifle Last Messages --------------- 02919_ Acquired 10 matter. 02924_ System corrupted: Heat flow error (+215). 02991_ LR-YZS(R): "YOUGO!" 03007_ 89ZJ>>FO6:1>D7VB6 6 03007_ LR-YZS(R) destroyed. 03050_ System corrupted: IFF burst signal emitted. 03077_ System corrupted: Matter fused (-6). 03085_ K8-PWC(z): "Hey you! It's really dangerous down here, I feel that you could die at any moment. For your health and safety might I suggest a trip to Zion?" World map updated: -6/Zion. 03116_ MSA25GE7CWH>K=BQHRMF1QYJ 03131_ System corrupted: Heat flow error (+111). 03148_ 6J:6JV#3